[Event "Titled Tuesday Blitz March 07 Late 2023"]
[White "Harriott, Tyrell"]
[Black "Pinheiro, Iung Alicio de O."]
[WhiteFideId "2086484"]
[BlackFideId "2104350"]
[WhiteElo "2107"]
[BlackElo "2283"]
[Result "1-0"]
[Round "09"]
[TimeControl "180+2"]
[Date "2023.03.07"]
[WhiteClock "0:00:13"]
[BlackClock "0:00:01"]

1. d4 {[%clk 0:03:00]}  d5 {[%clk 0:02:58]} 2. e3 {[%clk 0:03:01]}  Nf6 {[%clk 0:02:55]} 3. Bd3 {[%clk 0:03:01]}  e6 {[%clk 0:02:42]} 4. f4 {[%clk 0:03:00]}  Be7 {[%clk 0:02:29]} 5. Nf3 {[%clk 0:03:00]}  b6 {[%clk 0:02:30]} 6. c3 {[%clk 0:02:59]}  Bb7 {[%clk 0:02:28]} 7. Nbd2 {[%clk 0:02:58]}  Ne4 {[%clk 0:02:25]} 8. O-O {[%clk 0:02:57]}  O-O {[%clk 0:02:24]} 9. Ne5 {[%clk 0:02:57]}  f6 {[%clk 0:02:23]} 10. Ng4 {[%clk 0:02:54]}  c5 {[%clk 0:02:16]} 11. Qf3 {[%clk 0:02:48]}  f5 {[%clk 0:01:49]} 12. Ne5 {[%clk 0:02:47]}  Nc6 {[%clk 0:01:49]} 13. g4 {[%clk 0:02:46]}  Nxe5 {[%clk 0:01:48]} 14. fxe5 {[%clk 0:02:46]}  g6 {[%clk 0:01:04]} 15. gxf5 {[%clk 0:02:34]}  Rxf5 {[%clk 0:01:00]} 16. Qh3 {[%clk 0:02:27]}  Ng5 {[%clk 0:00:56]} 17. Qg2 {[%clk 0:02:10]}  Rxf1+ {[%clk 0:00:51]} 18. Nxf1 {[%clk 0:02:07]}  c4 {[%clk 0:00:47]} 19. Bc2 {[%clk 0:02:02]}  Qf8 {[%clk 0:00:46]} 20. Ng3 {[%clk 0:01:40]}  Qf3 {[%clk 0:00:41]} 21. e4 {[%clk 0:01:28]}  Qxg2+ {[%clk 0:00:36]} 22. Kxg2 {[%clk 0:01:27]}  dxe4 {[%clk 0:00:33]} 23. Bxg5 {[%clk 0:01:24]}  Bxg5 {[%clk 0:00:28]} 24. Bxe4 {[%clk 0:01:22]}  Bd5 {[%clk 0:00:29]} 25. Bxd5 {[%clk 0:01:21]}  exd5 {[%clk 0:00:30]} 26. Rf1 {[%clk 0:01:03]}  b5 {[%clk 0:00:29]} 27. Kf2 {[%clk 0:00:56]}  Rb8 {[%clk 0:00:28]} 28. Ke2 {[%clk 0:00:54]}  b4 {[%clk 0:00:29]} 29. Kf3 {[%clk 0:00:51]}  bxc3 {[%clk 0:00:27]} 30. bxc3 {[%clk 0:00:52]}  Rb2 {[%clk 0:00:27]} 31. Rf2 {[%clk 0:00:50]}  Rb7 {[%clk 0:00:26]} 32. Kg4 {[%clk 0:00:50]}  Be7 {[%clk 0:00:23]} 33. h4 {[%clk 0:00:48]}  h5+ {[%clk 0:00:22]} 34. Kh3 {[%clk 0:00:46]}  a5 {[%clk 0:00:18]} 35. Rc2 {[%clk 0:00:43]}  a4 {[%clk 0:00:18]} 36. Rg2 {[%clk 0:00:36]}  Kf7 {[%clk 0:00:17]} 37. Ne2 {[%clk 0:00:36]}  a3 {[%clk 0:00:17]} 38. Nf4 {[%clk 0:00:36]}  Rb2 {[%clk 0:00:17]} 39. Nxd5 {[%clk 0:00:36]}  Bf8 {[%clk 0:00:13]} 40. Ne3 {[%clk 0:00:32]}  Ke6 {[%clk 0:00:05]} 41. Nxc4 {[%clk 0:00:32]}  Rb1 {[%clk 0:00:04]} 42. Rxg6+ {[%clk 0:00:24]}  Kd5 {[%clk 0:00:04]} 43. Ne3+ {[%clk 0:00:24]}  Ke4 {[%clk 0:00:04]} 44. Nc4 {[%clk 0:00:23]}  Kd3 {[%clk 0:00:04]} 45. Nd6 {[%clk 0:00:16]}  Kxc3 {[%clk 0:00:03]} 46. Nf5 {[%clk 0:00:13]}  Rb2 {[%clk 0:00:03]} 47. Rg2 {[%clk 0:00:13]}  Bb4 {[%clk 0:00:01]} 48. e6 {[%clk 0:00:13]} 1-0


[Site "https://www.chess.com"]

[Event "Titled Tuesday Blitz March 07 Late 2023"]
[White "Zampronha, Wladimir Camilo"]
[Black "Graif, William"]
[WhiteFideId "2103087"]
[BlackFideId "2609835"]
[WhiteElo "2176"]
[BlackElo "2205"]
[Result "0-1"]
[Round "09"]
[TimeControl "180+2"]
[Date "2023.03.07"]
[WhiteClock "0:00:53"]
[BlackClock "0:00:16"]

1. e4 {[%clk 0:03:00]}  e5 {[%clk 0:02:58]} 2. Nf3 {[%clk 0:03:01]}  Bc5 {[%clk 0:02:57]} 3. Nxe5 {[%clk 0:02:57]}  Nc6 {[%clk 0:02:57]} 4. Nf3 {[%clk 0:02:55]}  d5 {[%clk 0:02:56]} 5. e5 {[%clk 0:02:47]}  d4 {[%clk 0:02:55]} 6. Bb5 {[%clk 0:02:45]}  Ne7 {[%clk 0:02:52]} 7. O-O {[%clk 0:02:43]}  O-O {[%clk 0:02:50]} 8. d3 {[%clk 0:02:42]}  Bg4 {[%clk 0:02:48]} 9. Re1 {[%clk 0:02:37]}  Qd5 {[%clk 0:02:21]} 10. Bc4 {[%clk 0:02:32]}  Bxf3 {[%clk 0:02:00]} 11. Bxd5 {[%clk 0:02:28]}  Bxd1 {[%clk 0:01:59]} 12. Bxc6 {[%clk 0:02:28]}  Nxc6 {[%clk 0:01:39]} 13. Rxd1 {[%clk 0:02:27]}  Nxe5 {[%clk 0:01:38]} 14. Bf4 {[%clk 0:02:25]}  Bd6 {[%clk 0:01:34]} 15. Bxe5 {[%clk 0:02:25]}  Bxe5 {[%clk 0:01:33]} 16. Nd2 {[%clk 0:02:25]}  Rfe8 {[%clk 0:01:32]} 17. Re1 {[%clk 0:02:20]}  f5 {[%clk 0:01:19]} 18. g3 {[%clk 0:02:08]}  Kf7 {[%clk 0:01:17]} 19. f4 {[%clk 0:02:02]}  Bf6 {[%clk 0:01:14]} 20. Kf2 {[%clk 0:02:01]}  g5 {[%clk 0:01:00]} 21. fxg5 {[%clk 0:01:59]}  Bxg5 {[%clk 0:01:00]} 22. Nf1 {[%clk 0:01:49]}  Rad8 {[%clk 0:00:46]} 23. Rxe8 {[%clk 0:01:48]}  Rxe8 {[%clk 0:00:40]} 24. Re1 {[%clk 0:01:48]}  Rxe1 {[%clk 0:00:40]} 25. Kxe1 {[%clk 0:01:49]}  Ke6 {[%clk 0:00:40]} 26. Ke2 {[%clk 0:01:49]}  Ke5 {[%clk 0:00:31]} 27. Nd2 {[%clk 0:01:43]}  Bxd2 {[%clk 0:00:28]} 28. Kxd2 {[%clk 0:01:44]}  f4 {[%clk 0:00:29]} 29. Ke2 {[%clk 0:01:44]}  fxg3 {[%clk 0:00:26]} 30. hxg3 {[%clk 0:01:45]}  h5 {[%clk 0:00:24]} 31. Kf3 {[%clk 0:01:33]}  Kf5 {[%clk 0:00:25]} 32. c3 {[%clk 0:01:30]}  dxc3 {[%clk 0:00:22]} 33. bxc3 {[%clk 0:01:30]}  c5 {[%clk 0:00:23]} 34. a4 {[%clk 0:01:27]}  b6 {[%clk 0:00:21]} 35. Ke3 {[%clk 0:01:16]}  a6 {[%clk 0:00:18]} 36. d4 {[%clk 0:01:02]}  cxd4+ {[%clk 0:00:19]} 37. Kxd4 {[%clk 0:01:03]}  Kg4 {[%clk 0:00:18]} 38. a5 {[%clk 0:01:03]}  b5 {[%clk 0:00:13]} 39. Kc5 {[%clk 0:01:03]}  Kxg3 {[%clk 0:00:14]} 40. Kb6 {[%clk 0:01:04]}  h4 {[%clk 0:00:14]} 41. Kxa6 {[%clk 0:01:05]}  h3 {[%clk 0:00:15]} 42. Kxb5 {[%clk 0:01:02]}  h2 {[%clk 0:00:16]} 43. Kb6 {[%clk 0:01:00]}  h1=Q {[%clk 0:00:17]} 44. a6 {[%clk 0:01:01]}  Qa8 {[%clk 0:00:14]} 45. c4 {[%clk 0:01:01]}  Qb8+ {[%clk 0:00:14]} 46. Kc6 {[%clk 0:01:01]}  Kf4 {[%clk 0:00:14]} 47. c5 {[%clk 0:01:01]}  Ke5 {[%clk 0:00:14]} 48. Kd7 {[%clk 0:00:56]}  Kd5 {[%clk 0:00:13]} 49. c6 {[%clk 0:00:56]}  Qb5 {[%clk 0:00:13]} 50. a7 {[%clk 0:00:56]}  Qxc6+ {[%clk 0:00:14]} 51. Kd8 {[%clk 0:00:53]}  Qa8+ {[%clk 0:00:15]} 52. Kc7 {[%clk 0:00:54]}  Qxa7+ {[%clk 0:00:15]} 53. Kc8 {[%clk 0:00:53]}  Kd6 {[%clk 0:00:15]} 54. Kd8 {[%clk 0:00:53]}  Qd7# {[%clk 0:00:16]} 0-1


[Site "https://www.chess.com"]

[Event "Titled Tuesday Blitz March 07 Late 2023"]
[White "Erzhanov, Arman"]
[Black "Pesotskiy, Mikhail"]
[WhiteFideId "4138821"]
[BlackFideId "34164453"]
[WhiteElo "2138"]
[BlackElo "2131"]
[Result "1-0"]
[Round "09"]
[TimeControl "180+2"]
[Date "2023.03.07"]
[WhiteClock "0:00:20"]
[BlackClock "0:00:02"]

1. e4 {[%clk 0:02:57]}  e6 {[%clk 0:03:00]} 2. b3 {[%clk 0:02:56]}  d5 {[%clk 0:02:59]} 3. Bb2 {[%clk 0:02:57]}  dxe4 {[%clk 0:02:59]} 4. Nc3 {[%clk 0:02:57]}  Nf6 {[%clk 0:02:58]} 5. Qe2 {[%clk 0:02:57]}  Nbd7 {[%clk 0:02:58]} 6. O-O-O {[%clk 0:02:57]}  Be7 {[%clk 0:02:58]} 7. Nxe4 {[%clk 0:02:56]}  O-O {[%clk 0:02:58]} 8. Nf3 {[%clk 0:02:55]}  b6 {[%clk 0:02:49]} 9. Nxf6+ {[%clk 0:02:51]}  Nxf6 {[%clk 0:02:50]} 10. g4 {[%clk 0:02:37]}  Bb7 {[%clk 0:02:46]} 11. g5 {[%clk 0:02:37]}  Nd5 {[%clk 0:02:46]} 12. h4 {[%clk 0:02:34]}  Bd6 {[%clk 0:02:40]} 13. Rg1 {[%clk 0:02:26]}  Qe7 {[%clk 0:02:40]} 14. Kb1 {[%clk 0:02:24]}  Rae8 {[%clk 0:02:00]} 15. Ne5 {[%clk 0:02:23]}  Nf4 {[%clk 0:01:59]} 16. Qg4 {[%clk 0:02:21]}  Ng6 {[%clk 0:01:56]} 17. f4 {[%clk 0:02:16]}  Bc5 {[%clk 0:01:46]} 18. d4 {[%clk 0:02:07]}  Nxe5 {[%clk 0:01:46]} 19. fxe5 {[%clk 0:02:05]}  Ba3 {[%clk 0:01:47]} 20. Ba1 {[%clk 0:02:04]}  c5 {[%clk 0:01:43]} 21. Bd3 {[%clk 0:01:58]}  cxd4 {[%clk 0:01:41]} 22. Bxd4 {[%clk 0:01:57]}  Bc5 {[%clk 0:01:40]} 23. h5 {[%clk 0:01:56]}  Bxd4 {[%clk 0:01:38]} 24. Qxd4 {[%clk 0:01:57]}  Rd8 {[%clk 0:01:38]} 25. Qg4 {[%clk 0:01:46]}  Rd5 {[%clk 0:01:32]} 26. Rde1 {[%clk 0:01:43]}  Rfd8 {[%clk 0:01:20]} 27. g6 {[%clk 0:01:24]}  fxg6 {[%clk 0:00:49]} 28. hxg6 {[%clk 0:01:24]}  Rf8 {[%clk 0:00:33]} 29. gxh7+ {[%clk 0:01:22]}  Kh8 {[%clk 0:00:33]} 30. Bc4 {[%clk 0:01:13]}  Rd2 {[%clk 0:00:32]} 31. Bxe6 {[%clk 0:01:03]}  Rff2 {[%clk 0:00:16]} 32. Bf5 {[%clk 0:01:01]}  Qc7 {[%clk 0:00:17]} 33. Qg6 {[%clk 0:00:47]}  Bc6 {[%clk 0:00:05]} 34. e6 {[%clk 0:00:41]}  Qe7 {[%clk 0:00:05]} 35. Bd3 {[%clk 0:00:36]}  Rf6 {[%clk 0:00:04]} 36. Qg4 {[%clk 0:00:35]}  Be8 {[%clk 0:00:04]} 37. Qg3 {[%clk 0:00:26]}  Rdf2 {[%clk 0:00:02]} 38. Qe5 {[%clk 0:00:20]} 1-0


[Site "https://www.chess.com"]

[Event "Titled Tuesday Blitz March 07 Late 2023"]
[White "Romero Ruscalleda, Josep"]
[Black "Becerra, Juan David"]
[WhiteFideId "2231859"]
[BlackFideId "4404998"]
[WhiteElo "2183"]
[BlackElo "2282"]
[Result "0-1"]
[Round "09"]
[TimeControl "180+2"]
[Date "2023.03.07"]
[WhiteClock "0:00:01"]
[BlackClock "0:00:04"]

1. e4 {[%clk 0:02:58]}  e5 {[%clk 0:00:47]} 2. Nf3 {[%clk 0:02:57]}  Nc6 {[%clk 0:00:40]} 3. Bc4 {[%clk 0:02:56]}  Bc5 {[%clk 0:00:39]} 4. c3 {[%clk 0:02:56]}  Nf6 {[%clk 0:00:38]} 5. b4 {[%clk 0:02:56]}  Bb6 {[%clk 0:00:33]} 6. d3 {[%clk 0:02:56]}  d6 {[%clk 0:00:33]} 7. a4 {[%clk 0:02:53]}  a6 {[%clk 0:00:32]} 8. O-O {[%clk 0:02:52]}  O-O {[%clk 0:00:32]} 9. h3 {[%clk 0:02:45]}  Ne7 {[%clk 0:00:32]} 10. Bb3 {[%clk 0:02:40]}  Ng6 {[%clk 0:00:32]} 11. Nbd2 {[%clk 0:02:39]}  c6 {[%clk 0:00:29]} 12. Nc4 {[%clk 0:02:37]}  Bc7 {[%clk 0:00:29]} 13. Re1 {[%clk 0:02:32]}  Re8 {[%clk 0:00:28]} 14. Ne3 {[%clk 0:02:27]}  d5 {[%clk 0:00:28]} 15. Qc2 {[%clk 0:02:06]}  Be6 {[%clk 0:00:26]} 16. Nf5 {[%clk 0:02:04]}  Qd7 {[%clk 0:00:20]} 17. g4 {[%clk 0:01:50]}  dxe4 {[%clk 0:00:19]} 18. dxe4 {[%clk 0:01:49]}  h6 {[%clk 0:00:17]} 19. Be3 {[%clk 0:01:41]}  Rad8 {[%clk 0:00:14]} 20. Rad1 {[%clk 0:01:40]}  Bxb3 {[%clk 0:00:14]} 21. Qxb3 {[%clk 0:01:37]}  Qe6 {[%clk 0:00:14]} 22. Qc2 {[%clk 0:01:24]}  Nf4 {[%clk 0:00:14]} 23. Bxf4 {[%clk 0:01:18]}  exf4 {[%clk 0:00:14]} 24. e5 {[%clk 0:01:07]}  Rxd1 {[%clk 0:00:13]} 25. Qxd1 {[%clk 0:01:06]}  Nd5 {[%clk 0:00:13]} 26. Qd2 {[%clk 0:00:59]}  Kh7 {[%clk 0:00:11]} 27. N3d4 {[%clk 0:00:57]}  Qg6 {[%clk 0:00:09]} 28. c4 {[%clk 0:00:49]}  Nb6 {[%clk 0:00:08]} 29. Qxf4 {[%clk 0:00:46]}  Nxc4 {[%clk 0:00:08]} 30. Nf3 {[%clk 0:00:45]}  Qe6 {[%clk 0:00:05]} 31. N5d4 {[%clk 0:00:38]}  Qd5 {[%clk 0:00:05]} 32. Qf5+ {[%clk 0:00:21]}  g6 {[%clk 0:00:05]} 33. Qf6 {[%clk 0:00:21]}  Nxe5 {[%clk 0:00:05]} 34. Nxe5 {[%clk 0:00:12]}  Bxe5 {[%clk 0:00:04]} 35. Qf3 {[%clk 0:00:05]}  Bh2+ {[%clk 0:00:02]} 36. Kxh2 {[%clk 0:00:03]}  Rxe1 {[%clk 0:00:03]} 37. Qxd5 {[%clk 0:00:01]}  cxd5 {[%clk 0:00:04]} 38. Kg3 {[%clk 0:00:01]}  Re4 {[%clk 0:00:04]} 0-1


[Site "https://www.chess.com"]

[Event "Titled Tuesday Blitz March 07 Late 2023"]
[White "Ardila, Oscar Humberto"]
[Black "Elissalt Cardenas, Hector"]
[WhiteFideId "4404742"]
[BlackFideId "3500632"]
[WhiteElo "1911"]
[BlackElo "2202"]
[Result "0-1"]
[Round "09"]
[TimeControl "180+2"]
[Date "2023.03.07"]
[WhiteClock "0:00:01"]
[BlackClock "0:00:14"]

1. d4 {[%clk 0:02:59]}  Nf6 {[%clk 0:02:57]} 2. c4 {[%clk 0:02:59]}  e6 {[%clk 0:02:57]} 3. Nf3 {[%clk 0:02:57]}  b6 {[%clk 0:02:56]} 4. Nc3 {[%clk 0:02:56]}  Bb7 {[%clk 0:02:57]} 5. e3 {[%clk 0:02:55]}  Be7 {[%clk 0:02:55]} 6. Be2 {[%clk 0:02:55]}  O-O {[%clk 0:02:54]} 7. O-O {[%clk 0:02:55]}  d5 {[%clk 0:02:55]} 8. b3 {[%clk 0:02:54]}  Nbd7 {[%clk 0:02:55]} 9. Bb2 {[%clk 0:02:53]}  a6 {[%clk 0:02:55]} 10. Rc1 {[%clk 0:02:53]}  Ne4 {[%clk 0:02:55]} 11. Nxe4 {[%clk 0:02:52]}  dxe4 {[%clk 0:02:55]} 12. Nd2 {[%clk 0:02:52]}  f5 {[%clk 0:02:54]} 13. Qc2 {[%clk 0:02:20]}  Qe8 {[%clk 0:02:45]} 14. d5 {[%clk 0:02:19]}  e5 {[%clk 0:02:40]} 15. f4 {[%clk 0:01:56]}  exf4 {[%clk 0:02:34]} 16. exf4 {[%clk 0:01:53]}  Bf6 {[%clk 0:02:18]} 17. Kh1 {[%clk 0:01:51]}  Qe7 {[%clk 0:02:16]} 18. Rfe1 {[%clk 0:01:35]}  a5 {[%clk 0:02:12]} 19. a4 {[%clk 0:01:30]}  Nc5 {[%clk 0:02:12]} 20. Nf1 {[%clk 0:01:23]}  Bxb2 {[%clk 0:02:04]} 21. Qxb2 {[%clk 0:01:23]}  Qh4 {[%clk 0:02:04]} 22. g3 {[%clk 0:01:21]}  Qf6 {[%clk 0:01:51]} 23. Qxf6 {[%clk 0:01:16]}  Rxf6 {[%clk 0:01:51]} 24. Ne3 {[%clk 0:01:17]}  Nxb3 {[%clk 0:01:47]} 25. Rc3 {[%clk 0:01:12]}  Nc5 {[%clk 0:01:46]} 26. Ra1 {[%clk 0:01:09]}  Re8 {[%clk 0:01:37]} 27. Kg2 {[%clk 0:01:08]}  Bc8 {[%clk 0:01:36]} 28. Kf2 {[%clk 0:01:07]}  Bd7 {[%clk 0:01:36]} 29. Bd1 {[%clk 0:01:04]}  h6 {[%clk 0:01:29]} 30. Bc2 {[%clk 0:01:04]}  g5 {[%clk 0:01:20]} 31. Rca3 {[%clk 0:00:58]}  Re7 {[%clk 0:01:20]} 32. Rg1 {[%clk 0:00:57]}  Rg7 {[%clk 0:01:20]} 33. Raa1 {[%clk 0:00:51]}  Kf8 {[%clk 0:01:16]} 34. Ke2 {[%clk 0:00:34]}  Ke7 {[%clk 0:01:15]} 35. Kd2 {[%clk 0:00:34]}  Kd6 {[%clk 0:01:15]} 36. Kc3 {[%clk 0:00:34]}  Rfg6 {[%clk 0:01:13]} 37. Ng2 {[%clk 0:00:30]}  Rf6 {[%clk 0:00:59]} 38. Kd4 {[%clk 0:00:29]}  Re7 {[%clk 0:00:57]} 39. Ne3 {[%clk 0:00:29]}  c6 {[%clk 0:00:55]} 40. h4 {[%clk 0:00:28]}  Rg7 {[%clk 0:00:47]} 41. hxg5 {[%clk 0:00:27]}  hxg5 {[%clk 0:00:47]} 42. Ng2 {[%clk 0:00:19]}  Rh6 {[%clk 0:00:45]} 43. fxg5 {[%clk 0:00:18]}  Rxg5 {[%clk 0:00:44]} 44. Nf4 {[%clk 0:00:19]}  Rh2 {[%clk 0:00:43]} 45. Kc3 {[%clk 0:00:16]}  Rf2 {[%clk 0:00:39]} 46. Rad1 {[%clk 0:00:09]}  Rf3+ {[%clk 0:00:39]} 47. Kb2 {[%clk 0:00:09]}  cxd5 {[%clk 0:00:28]} 48. Rxd5+ {[%clk 0:00:08]}  Kc7 {[%clk 0:00:28]} 49. Rgd1 {[%clk 0:00:08]}  Rgxg3 {[%clk 0:00:24]} 50. Nh5 {[%clk 0:00:07]}  Rg2 {[%clk 0:00:20]} 51. Nf6 {[%clk 0:00:08]}  Bxa4 {[%clk 0:00:15]} 52. Rd8 {[%clk 0:00:01]}  Rxc2+ {[%clk 0:00:14]} 0-1


[Site "https://www.chess.com"]

[Event "Titled Tuesday Blitz March 07 Late 2023"]
[White "Hjartarson, Johann"]
[Black "Paspuel, Trosky"]
[WhiteFideId "2300044"]
[BlackFideId "3602150"]
[WhiteElo "2416"]
[BlackElo "2328"]
[Result "1-0"]
[Round "09"]
[TimeControl "180+2"]
[Date "2023.03.07"]
[WhiteClock "0:01:19"]
[BlackClock "0:00:20"]

1. d4 {[%clk 0:03:00]}  Nf6 {[%clk 0:02:59]} 2. c4 {[%clk 0:03:00]}  e6 {[%clk 0:03:00]} 3. Nf3 {[%clk 0:03:00]}  d5 {[%clk 0:03:00]} 4. Nc3 {[%clk 0:02:59]}  Bb4 {[%clk 0:02:59]} 5. Qa4+ {[%clk 0:02:58]}  Nc6 {[%clk 0:03:00]} 6. e3 {[%clk 0:02:58]}  Bd7 {[%clk 0:02:56]} 7. Qc2 {[%clk 0:02:57]}  O-O {[%clk 0:02:47]} 8. Bd2 {[%clk 0:02:57]}  Bd6 {[%clk 0:02:36]} 9. a3 {[%clk 0:02:54]}  dxc4 {[%clk 0:02:28]} 10. Bxc4 {[%clk 0:02:53]}  e5 {[%clk 0:02:27]} 11. d5 {[%clk 0:02:37]}  Ne7 {[%clk 0:02:22]} 12. O-O {[%clk 0:02:33]}  c6 {[%clk 0:01:31]} 13. dxc6 {[%clk 0:02:29]}  Bxc6 {[%clk 0:01:29]} 14. e4 {[%clk 0:02:25]}  Ng6 {[%clk 0:01:21]} 15. Rad1 {[%clk 0:02:12]}  Qc7 {[%clk 0:01:20]} 16. Bg5 {[%clk 0:02:07]}  Nd7 {[%clk 0:00:54]} 17. Ba2 {[%clk 0:01:55]}  Kh8 {[%clk 0:00:52]} 18. Nd5 {[%clk 0:01:50]}  Qa5 {[%clk 0:00:32]} 19. Bd2 {[%clk 0:01:41]}  Qc5 {[%clk 0:00:28]} 20. Qb1 {[%clk 0:01:37]}  Rad8 {[%clk 0:00:24]} 21. Bb4 {[%clk 0:01:36]}  Bxd5 {[%clk 0:00:20]} 22. Rxd5 {[%clk 0:01:19]} 1-0


[Site "https://www.chess.com"]

[Event "Titled Tuesday Blitz March 07 Late 2023"]
[White "Delgado Rosas, Fatima Alexandra"]
[Black "Romkachess"]
[WhiteFideId "6603963"]
[WhiteElo "2319"]
[BlackElo "2478"]
[Result "0-1"]
[Round "09"]
[TimeControl "180+2"]
[Date "2023.03.07"]
[WhiteClock "0:00:44"]
[BlackClock "0:00:10"]

1. d4 {[%clk 0:03:00]}  Nf6 {[%clk 0:02:59]} 2. c3 {[%clk 0:03:01]}  e6 {[%clk 0:03:00]} 3. Nf3 {[%clk 0:03:01]}  c5 {[%clk 0:03:00]} 4. e3 {[%clk 0:03:01]}  cxd4 {[%clk 0:03:01]} 5. exd4 {[%clk 0:03:01]}  b6 {[%clk 0:03:02]} 6. Bd3 {[%clk 0:03:01]}  Bb7 {[%clk 0:03:02]} 7. O-O {[%clk 0:03:02]}  Be7 {[%clk 0:03:03]} 8. Bg5 {[%clk 0:03:01]}  O-O {[%clk 0:03:03]} 9. Re1 {[%clk 0:03:01]}  h6 {[%clk 0:03:04]} 10. Bh4 {[%clk 0:03:02]}  d6 {[%clk 0:03:04]} 11. Nbd2 {[%clk 0:03:02]}  Nbd7 {[%clk 0:03:05]} 12. Qe2 {[%clk 0:03:02]}  Rc8 {[%clk 0:03:04]} 13. Bg3 {[%clk 0:03:01]}  Re8 {[%clk 0:03:03]} 14. Nc4 {[%clk 0:02:59]}  Nf8 {[%clk 0:03:00]} 15. Rad1 {[%clk 0:02:57]}  Bd5 {[%clk 0:02:52]} 16. h3 {[%clk 0:02:56]}  Qd7 {[%clk 0:02:40]} 17. Ne3 {[%clk 0:02:55]}  Bxa2 {[%clk 0:02:31]} 18. Ra1 {[%clk 0:02:55]}  Bb3 {[%clk 0:02:18]} 19. Bb5 {[%clk 0:02:54]}  Qb7 {[%clk 0:02:09]} 20. Ba6 {[%clk 0:02:53]}  Qd7 {[%clk 0:02:05]} 21. Bxc8 {[%clk 0:02:54]}  Rxc8 {[%clk 0:02:06]} 22. Qa6 {[%clk 0:02:46]}  Ra8 {[%clk 0:01:57]} 23. Qa3 {[%clk 0:02:45]}  Bd5 {[%clk 0:01:54]} 24. Nxd5 {[%clk 0:02:45]}  Nxd5 {[%clk 0:01:54]} 25. c4 {[%clk 0:02:40]}  Nf6 {[%clk 0:01:52]} 26. Qa4 {[%clk 0:02:36]}  Qb7 {[%clk 0:01:48]} 27. b3 {[%clk 0:02:36]}  N8d7 {[%clk 0:01:41]} 28. Qa3 {[%clk 0:02:31]}  Ne4 {[%clk 0:01:27]} 29. Rxe4 {[%clk 0:02:29]}  Qxe4 {[%clk 0:01:25]} 30. Bxd6 {[%clk 0:02:30]}  Bxd6 {[%clk 0:01:23]} 31. Qxd6 {[%clk 0:02:31]}  Nf6 {[%clk 0:01:24]} 32. Ne5 {[%clk 0:02:24]}  Qc2 {[%clk 0:01:09]} 33. Qc7 {[%clk 0:02:19]}  Rf8 {[%clk 0:01:02]} 34. Rxa7 {[%clk 0:02:18]}  Qc1+ {[%clk 0:01:03]} 35. Kh2 {[%clk 0:02:15]}  Qf4+ {[%clk 0:01:02]} 36. Kg1 {[%clk 0:02:13]}  Ne4 {[%clk 0:01:03]} 37. Nf3 {[%clk 0:02:07]}  Qc1+ {[%clk 0:01:01]} 38. Kh2 {[%clk 0:02:07]}  Nxf2 {[%clk 0:01:01]} 39. Ra2 {[%clk 0:01:45]}  Qh1+ {[%clk 0:00:58]} 40. Kg3 {[%clk 0:01:45]}  Ne4+ {[%clk 0:00:58]} 41. Kf4 {[%clk 0:01:45]}  Ng5 {[%clk 0:00:48]} 42. Nxg5 {[%clk 0:01:41]}  Qh2+ {[%clk 0:00:46]} 43. g3 {[%clk 0:01:39]}  Qxa2 {[%clk 0:00:45]} 44. Nf3 {[%clk 0:01:27]}  Qxb3 {[%clk 0:00:40]} 45. h4 {[%clk 0:01:27]}  Qd3 {[%clk 0:00:25]} 46. g4 {[%clk 0:01:26]}  g5+ {[%clk 0:00:15]} 47. hxg5 {[%clk 0:01:26]}  hxg5+ {[%clk 0:00:16]} 48. Kg3 {[%clk 0:01:22]}  Qe4 {[%clk 0:00:09]} 49. Qxb6 {[%clk 0:01:19]}  Qf4+ {[%clk 0:00:09]} 50. Kf2 {[%clk 0:01:19]}  Ra8 {[%clk 0:00:07]} 51. Qb2 {[%clk 0:01:17]}  Rc8 {[%clk 0:00:05]} 52. c5 {[%clk 0:01:15]}  Rd8 {[%clk 0:00:02]} 53. c6 {[%clk 0:01:11]}  Rb8 {[%clk 0:00:03]} 54. Qc2 {[%clk 0:01:07]}  Qxg4 {[%clk 0:00:03]} 55. c7 {[%clk 0:01:06]}  Rc8 {[%clk 0:00:03]} 56. Qc6 {[%clk 0:01:00]}  Qf4 {[%clk 0:00:03]} 57. Qc5 {[%clk 0:00:54]}  Rxc7 {[%clk 0:00:03]} 58. Qxg5+ {[%clk 0:00:42]}  Qxg5 {[%clk 0:00:03]} 59. Nxg5 {[%clk 0:00:43]}  Kg7 {[%clk 0:00:04]} 60. Ke3 {[%clk 0:00:43]}  Kf6 {[%clk 0:00:04]} 61. Nf3 {[%clk 0:00:44]}  Ke7 {[%clk 0:00:05]} 62. Ke4 {[%clk 0:00:45]}  f6 {[%clk 0:00:05]} 63. Nh4 {[%clk 0:00:45]}  Ra7 {[%clk 0:00:06]} 64. Ng6+ {[%clk 0:00:46]}  Kd6 {[%clk 0:00:06]} 65. Nf4 {[%clk 0:00:46]}  Ra4 {[%clk 0:00:07]} 66. Ng6 {[%clk 0:00:46]}  e5 {[%clk 0:00:07]} 67. Ke3 {[%clk 0:00:45]}  Rxd4 {[%clk 0:00:08]} 68. Nh8 {[%clk 0:00:45]}  Ke6 {[%clk 0:00:08]} 69. Ng6 {[%clk 0:00:45]}  Ra4 {[%clk 0:00:09]} 70. Nf8+ {[%clk 0:00:45]}  Kf7 {[%clk 0:00:09]} 71. Nd7 {[%clk 0:00:45]}  Ra3+ {[%clk 0:00:09]} 72. Ke4 {[%clk 0:00:46]}  Ra1 {[%clk 0:00:09]} 73. Nc5 {[%clk 0:00:46]}  Kg6 {[%clk 0:00:09]} 74. Ne6 {[%clk 0:00:46]}  Re1+ {[%clk 0:00:09]} 75. Kf3 {[%clk 0:00:47]}  Kf5 {[%clk 0:00:10]} 76. Ng7+ {[%clk 0:00:47]}  Kg5 {[%clk 0:00:10]} 77. Ne6+ {[%clk 0:00:48]}  Kg6 {[%clk 0:00:11]} 78. Nf8+ {[%clk 0:00:48]}  Kf5 {[%clk 0:00:11]} 79. Nd7 {[%clk 0:00:46]}  Ra1 {[%clk 0:00:12]} 80. Nc5 {[%clk 0:00:46]}  Ra3+ {[%clk 0:00:12]} 81. Ke2 {[%clk 0:00:47]}  e4 {[%clk 0:00:13]} 82. Kf2 {[%clk 0:00:46]}  Kf4 {[%clk 0:00:12]} 83. Ne6+ {[%clk 0:00:46]}  Ke5 {[%clk 0:00:12]} 84. Nc5 {[%clk 0:00:45]}  f5 {[%clk 0:00:13]} 85. Ke2 {[%clk 0:00:45]}  f4 {[%clk 0:00:13]} 86. Kf2 {[%clk 0:00:46]}  Rc3 {[%clk 0:00:11]} 87. Na4 {[%clk 0:00:45]}  Rc2+ {[%clk 0:00:11]} 88. Ke1 {[%clk 0:00:45]}  f3 {[%clk 0:00:11]} 89. Kf1 {[%clk 0:00:45]}  Kf4 {[%clk 0:00:12]} 90. Ke1 {[%clk 0:00:43]}  e3 {[%clk 0:00:12]} 91. Kd1 {[%clk 0:00:44]}  Rh2 {[%clk 0:00:12]} 92. Nc3 {[%clk 0:00:44]}  e2+ {[%clk 0:00:11]} 93. Kd2 {[%clk 0:00:44]}  Rh1 {[%clk 0:00:11]} 94. Nd5+ {[%clk 0:00:44]}  Ke4 {[%clk 0:00:11]} 95. Nc3+ {[%clk 0:00:45]}  Kd4 {[%clk 0:00:11]} 96. Nb5+ {[%clk 0:00:43]}  Kc5 {[%clk 0:00:12]} 97. Na3 {[%clk 0:00:42]}  e1=Q+ {[%clk 0:00:12]} 98. Kc2 {[%clk 0:00:43]}  Rh2+ {[%clk 0:00:11]} 99. Kb3 {[%clk 0:00:44]}  Qb4# {[%clk 0:00:10]} 0-1


[Site "https://www.chess.com"]